fUSD/lending_fUSD_20251129
["ID","MTS","AMOUNT","RATE_DAILY","PERIOD"]
[395064884,1764393046235,-520.545903,0.00016994,2]
[395064885,1764393046243,-197.938443,0.00016994,2]
[395064886,1764393046252,-2119.63146,0.00016994,2]
[395064887,1764393046262,-2119.63146,0.00016994,2]
[395064888,1764393046271,-394.730425,0.00016994,2]
[395064889,1764393046279,-653.448487,0.00016994,2]
[395064890,1764393046288,-394.730425,0.00016994,2]
[395064891,1764393046297,-653.448487,0.00016994,2]
[395064892,1764393046307,-501.755271,0.00016994,2]
[395064893,1764393046316,-394.730425,0.00016994,2]
[395064894,1764393046325,-238.695461,0.00016994,2]
[395064895,1764393046334,-557.370217,0.00016994,2]
[395064896,1764393046344,-653.448487,0.00016994,2]
[395064897,1764393046353,-2341.206494,0.00016994,2]
[395064898,1764393046362,-501.755271,0.00016994,2]
[395064899,1764393046371,-557.370217,0.00016994,2]
[395064900,1764393046382,-394.730425,0.00016994,2]
[395064901,1764393046395,-653.448487,0.00016994,2]
[395064902,1764393046404,-2341.206494,0.00016994,2]
[395064903,1764393046414,-501.755271,0.00016994,2]
[395064904,1764393046423,-571.905435,0.00016994,2]
[395064905,1764393046433,-557.370217,0.00016994,2]
[395064906,1764393046443,-2341.206494,0.00016994,2]
[395064907,1764393046452,-1336.253952,0.00016994,2]
[395064908,1764393046462,-501.755271,0.00016994,2]
[395064909,1764393046471,-1226.459816,0.00016994,2]
[395064910,1764393046481,-571.905435,0.00016994,2]
[395064911,1764393046490,-557.370217,0.00016994,2]
[395064912,1764393046499,-2341.206494,0.00016994,2]
[395064913,1764393046509,-1336.253952,0.00016994,2]
[395064914,1764393046518,-571.905435,0.00016994,2]
[395064915,1764393046528,-1226.459816,0.00016994,2]
[395064916,1764393046537,-1129.522194,0.00016994,2]
[395064917,1764393046546,-1226.459816,0.00016994,2]
[395064918,1764393046556,-1336.253952,0.00016994,2]
[395064919,1764393046566,-1129.522194,0.00016994,2]
[395064920,1764393046575,-571.905435,0.00016994,2]
[395064921,1764393046584,-283.420367,0.00016994,2]
[395064922,1764393046594,-1226.459816,0.00016994,2]
[395064923,1764393046603,-1336.253952,0.00016994,2]
[395064924,1764393046612,-1129.522194,0.00016994,2]
[395064925,1764393046622,-283.420367,0.00016994,2]
[395064926,1764393046631,-1129.522194,0.00016994,2]
[395064927,1764393046640,-283.420367,0.00016994,2]
[395064928,1764393046650,-151.0,0.00016994,2]
[395064929,1764393046660,-283.420367,0.00016994,2]
[395064930,1764393046669,-151.0,0.00016994,2]
[395064931,1764393046678,-151.0,0.00016994,2]
[395064932,1764393046687,-151.0,0.00016994,2]
[395064933,1764393046696,-607.664654,0.00016994,2]
[395064934,1764393046705,-156.92685,0.00016994,2]
[395064935,1764393046715,-151.0,0.00016994,2]
[395064936,1764393046724,-607.664654,0.00016994,2]
[395064937,1764393046733,-156.92685,0.00016994,2]
[395064938,1764393046742,-151.0,0.00016994,2]
[395064939,1764393046751,-607.664654,0.00016994,2]
[395064940,1764393046761,-156.92685,0.00016994,2]
[395064941,1764393046771,-151.0,0.00016994,2]
[395064942,1764393046780,-156.92685,0.00016994,2]
[395064943,1764393047025,-607.664654,0.00016994,2]
[395064944,1764393047038,-1177.658515,0.00016994,2]
[395064945,1764393047047,-1177.658515,0.00016994,2]
[395064946,1764393047057,-1177.658515,0.00016994,2]
[395064947,1764393047066,-1177.658515,0.00016994,2]
[395064948,1764393047076,-151.0,0.00016994,2]
[395064949,1764393047085,-1230.117387,0.00016994,2]
[395064950,1764393047094,-151.0,0.00016994,2]
[395064951,1764393047103,-1230.117387,0.00016994,2]
[395064952,1764393047112,-151.0,0.00016994,2]
[395064953,1764393047121,-1230.117387,0.00016994,2]
[395064954,1764393047130,-151.0,0.00016994,2]
[395064955,1764393047140,-527.746302,0.00016994,2]
[395064956,1764393047149,-1230.117387,0.00016994,2]
[395064957,1764393047159,-522.820407,0.00016994,2]
[395064958,1764393047168,-151.0,0.00016994,2]
[395064959,1764393047177,-527.746302,0.00016994,2]
[395064960,1764393047187,-522.820407,0.00016994,2]
[395064961,1764393047196,-527.746302,0.00016994,2]
[395064962,1764393047206,-522.820407,0.00016994,2]
[395064963,1764393047215,-527.746302,0.00016994,2]
[395064964,1764393047224,-522.820407,0.00016994,2]
[395064965,1764393047234,-151.574654,0.00016994,2]
[395064966,1764393047243,-151.574654,0.00016994,2]
[395064967,1764393047252,-151.574654,0.00016994,2]
[395064968,1764393047261,-151.574654,0.00016994,2]
[395064969,1764393047271,-151.0,0.00016994,2]
[395064970,1764393047280,-151.0,0.00016994,2]
[395064971,1764393047289,-151.0,0.00016994,2]
[395064972,1764393047301,-219.9382053,0.00016996,2]
[395064973,1764393047311,-666.0,0.00016996,2]
[395064974,1764393047320,-300.0,0.00016999,2]
[395064975,1764393047331,-300.0,0.00016999,2]
[395064976,1764393047341,-747159.09182783,0.00017,2]
[395064977,1764393047350,-1000.0,0.00017,2]
[395064978,1764393047359,-1000.0,0.00017,2]
[395064979,1764393047369,-1000.0,0.00017,2]
[395064980,1764393047379,-1000.0,0.00017,2]
[395064981,1764393047394,-1000.0,0.00017,2]
[395064982,1764393047403,-1000.0,0.00017,2]
[395064983,1764393047414,-1000.0,0.00017,2]
[395064984,1764393047426,-1000.0,0.00017,2]
[395064985,1764393047435,-1000.0,0.00017,2]
[395064986,1764393047448,-1000.0,0.00017,2]
[395064987,1764393047458,-1000.0,0.00017,2]
[395064988,1764393047469,-1000.0,0.00017,2]
[395064989,1764393047478,-1000.0,0.00017,2]
[395064990,1764393047487,-1000.0,0.00017,2]
[395064991,1764393047497,-1000.0,0.00017,2]
[395064992,1764393047506,-1000.0,0.00017,2]
[395064993,1764393047516,-1000.0,0.00017,2]
[395064994,1764393047525,-1000.0,0.00017,2]
[395064995,1764393047535,-1000.0,0.00017,2]
[395064996,1764393047544,-1000.0,0.00017,2]
[395064997,1764393047554,-1000.0,0.00017,2]
[395064998,1764393047563,-1000.0,0.00017,2]
[395064999,1764393047573,-1000.0,0.00017,2]
[395065000,1764393047583,-1000.0,0.00017,2]
[395065001,1764393047592,-1000.0,0.00017,2]
[395065002,1764393047601,-1000.0,0.00017,2]
[395065003,1764393047611,-1000.0,0.00017,2]
[395065004,1764393047620,-1000.0,0.00017,2]
[395065005,1764393047629,-1000.0,0.00017,2]
[395065006,1764393047639,-1254928.33300633,0.00017,2]
[395065007,1764393047648,-22225.02737587,0.00017,2]
[395065008,1764393048485,-1833.05257382,0.00017,2]
[395065009,1764393048496,-310.98473912,0.00017,2]
[395065010,1764393048538,-710.22115147,0.00017,2]
[395065011,1764393049966,-10866.04072063,0.00016665,2]
[395065012,1764393049975,-14625.68328234,0.00017,2]
[395065013,1764393050018,-2617.51112008,0.00017,2]
[395065014,1764393050041,-8086.00539127,0.00017,2]
[395065015,1764393050052,-261525.53916346,0.00017,2]
[395065016,1764393050093,-619.62643468,0.00017,2]
[395065017,1764393051383,-1116.30772584,0.00017,2]
[395065018,1764393051415,-1969.89024886,0.00017,2]
[395065019,1764393051427,-2436.16,0.00017,2]
[395065020,1764393051711,-280.62891242,0.00017,2]
[395065021,1764393051753,-5570.45453968,0.00017,2]
[395065022,1764393051784,-1542.75257694,0.00017,2]
[395065034,1764393277847,152.17,0.00019178,30]
[395065036,1764393599048,166.66,0.00014624,2]
[395065037,1764393640000,535.13,0.00013699,2]
[395065040,1764393747597,500.0,0.00014731,2]
[395065042,1764393949180,450.6,0.00022,30]
[395065106,1764394164417,1219.019,0.00025,120]
[395065128,1764394240679,-293.29102382,0.00014913,2]
[395065130,1764394240689,-211.0,0.00014913,2]
[395065132,1764394240698,-166.66,0.00014931,2]
[395065134,1764394240708,-3901.42886975,0.00014999,2]
[395065136,1764394240718,-300.0,0.00014999,2]
[395065138,1764394240728,-300.0,0.00014999,2]
[395065140,1764394240738,-1200.0,0.00014999,2]
[395065142,1764394240747,-769.1730053,0.00015,2]
[395065144,1764394240756,-6.99920271,0.00015,2]
[395065146,1764394240768,-1182.40591625,0.00015,2]
[395065148,1764394240777,-187.45757874,0.00015,2]
[395065150,1764394240832,-1313.20721126,0.00015,2]
[395065151,1764394240842,-1000.0,0.00015073,2]
[395065152,1764394240852,-984.52,0.000151,2]
[395065153,1764394240862,-161.34,0.00015195,2]
[395065154,1764394240875,-1151.1,0.00015227,2]
[395065155,1764394240884,-166.66,0.00015239,2]
[395065156,1764394240894,-500.0,0.00015261,2]
[395065157,1764394240904,-2464.17,0.00015268,2]
[395065158,1764394240922,-150.0,0.00015288,2]
[395065159,1764394240934,-150.0,0.00015288,2]
[395065160,1764394240944,-150.0,0.00015288,2]
[395065161,1764394240954,-150.0,0.00015288,2]
[395065162,1764394240965,-150.0,0.00015288,2]
[395065163,1764394240976,-1500.0,0.00015422,2]
[395065164,1764394240986,-1011.49,0.00015541,2]
[395065165,1764394240996,-166.66,0.00015547,2]
[395065166,1764394241005,-292.57355369,0.0001577,2]
[395065167,1764394241018,-150.0,0.00015854,2]
[395065168,1764394241027,-166.66,0.00015855,2]
[395065169,1764394241038,-151.0,0.000159,2]
[395065170,1764394241048,-267.46074303,0.000159,2]
[395065171,1764394241058,-363.5159703,0.000159,2]
[395065172,1764394241068,-666.0,0.000159,2]
[395065173,1764394241079,-300.0,0.000159,2]
[395065174,1764394241088,-300.0,0.00015962,2]
[395065175,1764394241097,-500.0,0.00015963,2]
[395065176,1764394241107,-200.0,0.00015963,2]
[395065177,1764394241117,-500.0,0.00015963,2]
[395065178,1764394241128,-553.64373807,0.00015963,2]
[395065179,1764394241137,-500.0,0.00015963,2]
[395065180,1764394241148,-151.0,0.00015963,2]
[395065181,1764394241158,-500.0,0.00015963,2]
[395065182,1764394241167,-500.0,0.00015963,2]
[395065183,1764394241176,-500.0,0.00015963,2]
[395065184,1764394241186,-500.0,0.00015963,2]
[395065185,1764394241196,-500.0,0.00015963,2]
[395065186,1764394241206,-500.0,0.00015963,2]
[395065187,1764394241215,-500.0,0.00015963,2]
[395065188,1764394241225,-250.0,0.00015963,2]
[395065189,1764394241235,-500.0,0.00015963,2]
[395065190,1764394241244,-620.0,0.00015963,2]
[395065191,1764394241254,-500.0,0.00015963,2]
[395065192,1764394241263,-250.0,0.00015963,2]
[395065193,1764394241273,-500.0,0.00015963,2]
[395065194,1764394241283,-500.0,0.00015963,2]
[395065195,1764394241293,-250.0,0.00015963,2]
[395065196,1764394241303,-500.0,0.00015963,2]
[395065197,1764394241312,-500.0,0.00015963,2]
[395065198,1764394241322,-250.0,0.00015963,2]
[395065199,1764394241331,-500.0,0.00015963,2]
[395065200,1764394241341,-250.0,0.00015963,2]
[395065201,1764394241350,-500.0,0.00015963,2]
[395065202,1764394241360,-250.0,0.00015963,2]
[395065203,1764394241369,-500.0,0.00015963,2]
[395065204,1764394241378,-250.0,0.00015963,2]
[395065205,1764394241388,-500.0,0.00015963,2]
[395065206,1764394241397,-250.0,0.00015963,2]
[395065207,1764394241406,-500.0,0.00015963,2]
[395065208,1764394241416,-250.0,0.00015963,2]
[395065209,1764394241426,-500.0,0.00015963,2]
[395065210,1764394241437,-250.0,0.00015963,2]
[395065211,1764394241448,-151.0,0.00015963,2]
[395065212,1764394241458,-500.0,0.00015963,2]
[395065213,1764394241472,-250.0,0.00015963,2]
[395065214,1764394241482,-500.0,0.00015963,2]
[395065215,1764394241492,-250.0,0.00015963,2]
[395065216,1764394241502,-500.0,0.00015963,2]
[395065217,1764394241512,-151.0,0.00015963,2]
[395065218,1764394241522,-300.0,0.00015963,2]
[395065219,1764394241532,-500.0,0.00015963,2]
[395065220,1764394241542,-500.0,0.00015963,2]
[395065221,1764394241553,-500.0,0.00015963,2]
[395065222,1764394241563,-250.0,0.00015963,2]
[395065223,1764394241573,-500.0,0.00015963,2]
[395065224,1764394241583,-500.0,0.00015963,2]
[395065225,1764394241592,-250.0,0.00015963,2]
[395065226,1764394241603,-500.0,0.00015963,2]
[395065227,1764394241613,-500.0,0.00015963,2]
[395065228,1764394241623,-250.0,0.00015963,2]
[395065229,1764394241633,-500.0,0.00015963,2]
[395065230,1764394241643,-500.0,0.00015963,2]
[395065231,1764394241654,-250.0,0.00015963,2]
[395065232,1764394241664,-500.0,0.00015963,2]
[395065233,1764394241674,-500.0,0.00015963,2]
[395065234,1764394241684,-250.0,0.00015963,2]
[395065235,1764394241694,-500.0,0.00015963,2]
[395065236,1764394241704,-500.0,0.00015963,2]
[395065237,1764394241714,-250.0,0.00015963,2]
[395065238,1764394241724,-500.0,0.00015963,2]
[395065239,1764394241734,-500.0,0.00015963,2]
[395065240,1764394241744,-250.0,0.00015963,2]
[395065241,1764394241754,-500.0,0.00015963,2]
[395065242,1764394241763,-500.0,0.00015963,2]
[395065243,1764394241773,-250.0,0.00015963,2]
[395065244,1764394241783,-500.0,0.00015963,2]
[395065245,1764394241792,-250.0,0.00015963,2]
[395065246,1764394241803,-500.0,0.00015963,2]
[395065247,1764394241813,-250.0,0.00015963,2]
[395065248,1764394241825,-200.0,0.00015963,2]
[395065249,1764394241835,-250.0,0.00015963,2]
[395065250,1764394241845,-250.0,0.00015963,2]
[395065251,1764394241855,-200.0,0.00015963,2]
[395065252,1764394241866,-151.0,0.00015963,2]
[395065253,1764394241877,-151.0,0.00015963,2]
[395065255,1764394242238,-151.0,0.00015963,2]
[395065256,1764394242320,-151.0,0.00015963,2]
[395065257,1764394242330,-500.0,0.00015963,2]
[395065258,1764394242342,-151.0,0.00015963,2]
[395065259,1764394242354,-151.0,0.00015963,2]
[395065260,1764394242365,-500.0,0.00015963,2]
[395065261,1764394242374,-151.0,0.00015963,2]
[395065262,1764394242383,-500.0,0.00015963,2]
[395065263,1764394242393,-151.0,0.00015963,2]
[395065264,1764394242404,-500.0,0.00015963,2]
[395065265,1764394242413,-500.0,0.00015963,2]
[395065266,1764394242423,-151.0,0.00015963,2]
[395065267,1764394242434,-500.0,0.00015963,2]
[395065268,1764394242443,-151.0,0.00015963,2]
[395065269,1764394242452,-500.0,0.00015963,2]
[395065270,1764394242461,-151.0,0.00015963,2]
[395065271,1764394242469,-151.0,0.00015963,2]
[395065272,1764394242478,-500.0,0.00015963,2]
[395065273,1764394242487,-500.0,0.00015963,2]
[395065274,1764394242496,-500.0,0.00015963,2]
[395065275,1764394242505,-500.0,0.00015963,2]
[395065276,1764394242514,-500.0,0.00015963,2]
[395065277,1764394242525,-151.0,0.00015963,2]
[395065278,1764394242536,-151.0,0.00015963,2]
[395065279,1764394242545,-151.0,0.00015963,2]
[395065280,1764394242554,-151.0,0.00015963,2]
[395065281,1764394242563,-151.0,0.00015963,2]
[395065282,1764394242571,-151.0,0.00015963,2]
[395065283,1764394242580,-151.0,0.00015963,2]
[395065284,1764394242589,-151.0,0.00015963,2]
[395065285,1764394242598,-151.0,0.00015963,2]
[395065286,1764394242607,-151.0,0.00015963,2]
[395065287,1764394242618,-151.0,0.00015963,2]
[395065288,1764394242627,-151.0,0.00015963,2]
[395065289,1764394242636,-298.55328261,0.00015973,2]
[395065290,1764394242645,-500.0,0.00015973,2]
[395065291,1764394242655,-500.0,0.00015973,2]
[395065292,1764394242664,-500.0,0.00015973,2]
[395065293,1764394242673,-504.10751524,0.00015973,2]
[395065294,1764394242683,-500.0,0.00015973,2]
[395065295,1764394242691,-500.0,0.00015973,2]
[395065296,1764394242701,-500.0,0.00015973,2]
[395065297,1764394242710,-500.0,0.00015973,2]
[395065298,1764394242719,-500.0,0.00015973,2]
[395065299,1764394242728,-500.0,0.00015973,2]
[395065301,1764394242738,-151.0,0.00015997,2]
[395065302,1764394242747,-483.0831553,0.00015999,2]
[395065303,1764394242756,-618.45839124,0.00015999,2]
[395065304,1764394242765,-500.0,0.00015999,2]
[395065305,1764394242774,-157.7206304,0.00015999,2]
[395065306,1764394242783,-500.0,0.00015999,2]
[395065307,1764394242792,-500.0,0.00015999,2]
[395065308,1764394242801,-500.0,0.00015999,2]
[395065309,1764394242810,-500.0,0.00015999,2]
[395065310,1764394242820,-500.0,0.00015999,2]
[395065311,1764394242830,-500.0,0.00015999,2]
[395065312,1764394242840,-500.0,0.00015999,2]
[395065313,1764394242849,-355.22875436,0.00015999,2]
[395065314,1764394242858,-500.0,0.00015999,2]
[395065315,1764394242867,-500.0,0.00015999,2]
[395065316,1764394242876,-500.0,0.00015999,2]
[395065317,1764394242885,-500.0,0.00015999,2]
[395065318,1764394242894,-500.0,0.00015999,2]
[395065319,1764394242904,-500.0,0.00015999,2]
[395065320,1764394242913,-444394.35577969,0.00016,4]
[395065321,1764394242922,-298.18,0.00016002,2]
[395065322,1764394242932,-1425.0,0.00016107,2]
[395065323,1764394242947,-1425.0,0.00016116,2]
[395065324,1764394242956,-5888.0,0.00016152,2]
[395065325,1764394242967,-166.66,0.00016163,2]
[395065328,1764394242978,-1425.0,0.0001618,2]
[395065330,1764394242988,-5000.00868128,0.000162,5]
[395065331,1764394242997,-170.65345137,0.000162,2]
[395065332,1764394243007,-1425.0,0.00016244,2]
[395065333,1764394243015,-19964.08205113,0.00016282,2]
[395065334,1764394243049,-455.91,0.00016282,2]
[395065335,1764394243067,-4546.72798564,0.00016282,2]
[395065339,1764394244242,-569.22869468,0.00016282,2]
[395065340,1764394244268,-829.93042325,0.00016282,2]
[395065341,1764394244318,-42062.274,0.00016282,2]
[395065342,1764394244344,-1844.40697459,0.00016282,2]
[395065343,1764394244356,-1152.69932008,0.00016282,2]
[395065344,1764394246137,-993.0,0.00016282,2]
[395065345,1764394246149,-4304.38742319,0.00016282,2]
[395065346,1764394246160,-500.4799978,0.00016282,2]
[395065347,1764394246195,-2333.18793526,0.00016282,2]
[395065348,1764394246207,-1392.89026997,0.00016282,2]
[395065349,1764394246420,-753.01482349,0.00016282,2]
[395065382,1764395432258,-215.0,0.0001525,2]
[395065383,1764395432269,-200.0,0.0001525,2]
[395065384,1764395432279,-150.0,0.00015288,2]
[395065385,1764395432290,-200.0,0.00015288,2]
[395065386,1764395432300,-150.0,0.00015288,2]
[395065387,1764395432310,-150.0,0.00015288,2]
[395065388,1764395432319,-857.58,0.00015317,2]
[395065389,1764395432329,-330.93846846,0.00015337,2]
[395065390,1764395432338,-999.0,0.00015357,3]
[395065391,1764395432347,-157.89,0.00015684,2]
[395065392,1764395432357,-250.0,0.0001572,2]
[395065393,1764395432366,-166.67,0.00015787,2]
[395065394,1764395432375,-1000.0,0.000159,2]
[395065395,1764395432385,-157.51062533,0.00015965,2]
[395065396,1764395432395,-1200.0,0.0001597,2]
[395065397,1764395432404,-1115.0,0.00015971,2]
[395065398,1764395432413,-300.0,0.00015971,2]
[395065399,1764395432422,-300.0,0.00015971,2]
[395065400,1764395432431,-300.0,0.00015972,2]
[395065401,1764395432440,-500.0,0.00015973,2]
[395065402,1764395432450,-500.0,0.00015973,2]
[395065403,1764395432459,-500.0,0.00015973,2]
[395065404,1764395432469,-500.0,0.00015973,2]
[395065405,1764395432478,-500.0,0.00015973,2]
[395065406,1764395432488,-190.74008615,0.00015973,2]
[395065407,1764395432497,-500.0,0.00015973,2]
[395065408,1764395432506,-500.0,0.00015973,2]
[395065409,1764395432516,-500.0,0.00015973,2]
[395065410,1764395432525,-500.0,0.00015973,2]
[395065411,1764395432534,-267.46074303,0.00016036,2]
[395065412,1764395432544,-666.0,0.00016036,2]
[395065413,1764395432553,-300.0,0.00016036,2]
[395065414,1764395432563,-332.8823895,0.00016036,2]
[395065415,1764395432572,-1464.09267255,0.00016038,2]
[395065416,1764395432582,-11897.2360837,0.00016046,2]
[395065417,1764395432592,-1794.8812361,0.00016046,2]
[395065418,1764395432601,-26495.61026001,0.00016046,2]
[395065427,1764395432793,-3112.76,0.00016046,2]
[395065432,1764395432860,-448.05563965,0.00016046,2]
[395065453,1764395438581,-328.31959918,0.00016046,2]
[395065455,1764395438596,-964.0942,0.00016046,2]
[395065459,1764395438621,-1247.16992266,0.00016046,2]
[395065503,1764395441205,-3307.78078671,0.00016046,2]
[395065504,1764395441216,-1424.4581001,0.00016046,2]
[395065507,1764395446492,-55965.99067271,0.00016046,2]
[395065528,1764395779271,696.95725585,0.00025,120]
[395065529,1764395808663,194.33799118,0.0001457,2]
[395065530,1764395811000,349.45857574,0.0001457,2]
[395065531,1764395816807,152.17,0.00019178,30]
[395065533,1764395991466,1161.75,0.00022,30]
[395065536,1764396360988,538.0,0.00013699,2]
[395065548,1764396444428,166.66,0.00014169,2]
[395065549,1764396444518,166.66,0.00014468,2]
[395065551,1764396484629,-166.66,0.00014766,2]
[395065552,1764396484659,-500.0,0.00014956,2]
[395065553,1764396484692,-166.66,0.00015064,2]
[395065554,1764396484721,-300.0,0.00015188,2]
[395065555,1764396484755,-300.0,0.00015188,2]
[395065556,1764396484784,-150.0,0.00015189,2]
[395065557,1764396484812,-150.0,0.00015189,2]
[395065558,1764396484841,-150.0,0.00015189,2]
[395065559,1764396484870,-150.0,0.00015189,2]
[395065560,1764396484900,-150.0,0.00015189,2]
[395065561,1764396484930,-150.0,0.00015189,2]
[395065562,1764396484959,-150.0,0.00015189,2]
[395065563,1764396484991,-150.0,0.00015189,2]
[395065564,1764396485019,-150.0,0.00015189,2]
[395065565,1764396485048,-1682.37,0.00015192,2]
[395065566,1764396485220,-1068.63,0.00015192,2]
[395065567,1764396485250,-214.0,0.00015192,2]
[395065568,1764396485280,-154.53971989,0.00015192,2]
[395065569,1764396485308,-154.53971989,0.00015192,2]
[395065570,1764396485340,-166.66,0.00015362,2]
[395065571,1764396485369,-290.2,0.00015426,2]
[395065572,1764396485401,-961.3241428,0.00015546,2]
[395065573,1764396485432,-166.66,0.00015661,2]
[395065574,1764396485461,-1522.03619476,0.00015747,2]
[395065575,1764396485742,-2230.0,0.00015753,2]
[395065576,1764396485772,-1200.0,0.00015785,2]
[395065577,1764396485802,-910.01,0.00015786,2]
[395065578,1764396486006,-1319.99,0.00015786,2]
[395065579,1764396486034,-300.0,0.00015836,2]
[395065580,1764396486062,-300.0,0.00015836,2]
[395065581,1764396486093,-300.0,0.00015836,2]
[395065582,1764396486123,-267.46074303,0.00015836,2]
[395065583,1764396486152,-666.0,0.00015836,2]
[395065584,1764396486182,-1819.33490198,0.00015837,2]
[395065585,1764396491906,-5499.6275411,0.00015837,2]
[395065586,1764396491919,-4939.73237526,0.00015837,2]
[395065587,1764396491929,-660.04214587,0.00015837,2]
[395065588,1764396491938,-300.0,0.0001584,2]
[395065589,1764396491947,-2230.0,0.00015841,2]
[395065590,1764396491956,-308.22,0.00015841,2]
[395065591,1764396491965,-999.99,0.00015841,2]
[395065592,1764396491975,-562.02547887,0.00015841,2]
[395065593,1764396492006,-1033.42452113,0.00015841,2]
[395065594,1764396492128,-0.02,0.00015841,2]
[395065595,1764396492185,-0.04,0.00015841,2]
[395065596,1764396492264,-0.08,0.00015841,2]
[395065597,1764396492358,-0.16,0.00015841,2]
[395065598,1764396492472,-0.32,0.00015841,2]
[395065599,1764396492537,-8965.96547887,0.00015841,2]
[395065600,1764396492552,-1033.40452113,0.00015841,2]
[395065601,1764396492561,-150.99,0.00015841,2]
[395065602,1764396492570,-150.99,0.00015841,2]
[395065603,1764396492580,-3807.41,0.00015841,2]
[395065604,1764396492589,-4857.21547887,0.00015841,2]
[395065605,1764396492624,-4857.23547887,0.00015841,2]
[395065606,1764396492665,-285.53904226,0.00015841,2]
[395065607,1764396492675,-2954.1,0.00015841,2]
[395065608,1764396492685,-339.41,0.00015841,2]
[395065609,1764396492694,-530.30095774,0.00015846,2]
[395065610,1764396492712,-9469.86207965,0.00015846,2]
[395065611,1764396492722,-530.12792035,0.00015846,2]
[395065612,1764396492749,-927.43207965,0.00015846,2]
[395065613,1764396492760,-9072.53792035,0.00015846,2]
[395065614,1764396492791,-927.45207965,0.00015846,2]
[395065615,1764396492819,-299.99,0.00015846,2]
[395065616,1764396492846,-3503.3,0.00015846,2]
[395065617,1764396492890,-2230.0,0.00015875,2]
[395065618,1764396492899,-151.0,0.00015927,2]
[395065619,1764396492909,-151.0,0.00015927,2]
[395065620,1764396492918,-151.0,0.00015927,2]
[395065621,1764396492927,-151.0,0.00015927,2]
[395065622,1764396492936,-151.0,0.00015927,2]
[395065623,1764396492946,-151.0,0.00015927,2]
[395065624,1764396492956,-373.07297731,0.00015927,2]
[395065625,1764396492966,-151.0,0.00015927,2]
[395065626,1764396492975,-151.0,0.00015927,2]
[395065627,1764396492984,-151.0,0.00015927,2]
[395065628,1764396492994,-151.0,0.00015927,2]
[395065629,1764396493003,-553.64373807,0.00015927,2]
[395065630,1764396493013,-151.0,0.00015927,2]
[395065631,1764396493022,-151.0,0.00015927,2]
[395065632,1764396493032,-151.0,0.00015927,2]
[395065633,1764396493041,-149.47120497,0.00015927,2]
[395065634,1764396493080,-1.52879503,0.00015927,2]
[395065635,1764396493090,-151.0,0.00015927,2]
[395065636,1764396493100,-151.0,0.00015927,2]
[395065637,1764396493111,-151.0,0.00015927,2]
[395065638,1764396493122,-151.0,0.00015927,2]
[395065639,1764396493132,-151.0,0.00015927,2]
[395065640,1764396493142,-500.0,0.00015927,2]
[395065641,1764396493151,-151.0,0.00015927,2]
[395065642,1764396493160,-151.0,0.00015927,2]
[395065643,1764396493170,-151.0,0.00015927,2]
[395065644,1764396493179,-500.0,0.00015927,2]
[395065645,1764396493188,-151.0,0.00015927,2]
[395065646,1764396493198,-151.0,0.00015927,2]
[395065647,1764396493208,-500.0,0.00015927,2]
[395065648,1764396493217,-500.0,0.00015927,2]
[395065649,1764396493228,-151.0,0.00015927,2]